bitfinex/quotes_ETHUSD_20250605
["timestamp","ask_amount","ask_price","bid_price","bid_amount"]
[1749122307110,6.303,2593.7,2593.5,0.2155192]
[1749122307441,6.303,2593.7,2593.6,0.21549034]
[1749122307654,10.158496,2593.7,2593.6,0.21549034]
[1749122307858,3.85615398,2593.3,2593.0,0.51]
[1749122308012,6.303,2593.2,2593.1,0.21550776]
[1749122308214,6.303,2593.2,2593.0,20.36643384]
[1749122308432,6.303,2593.2,2593.1,4.07189455]
[1749122308754,1.5612,2593.6,2593.4,16.0]
[1749122309073,1.5612,2593.6,2593.3,3.85608252]
[1749122309074,6.302,2593.5,2593.2,19.85615814]
[1749122309278,6.302,2593.5,2593.2,16.0]
[1749122309462,6.302,2593.5,2593.2,3.8562267]
[1749122309658,5.41686316,2593.6,2593.2,3.8562267]
[1749122309659,1.5612,2593.6,2593.2,3.8562267]
[1749122309840,6.302,2593.5,2593.4,16.0]
[1749122310039,1.5612,2593.6,2593.4,16.0]
[1749122310271,6.302,2593.5,2593.4,16.0]
[1749122310773,6.302,2593.5,2593.3,16.0]
[1749122311174,3.85601124,2593.4,2593.0,16.51]
[1749122311390,5.43865073,2593.3,2593.0,0.51]
[1749122311692,6.302,2593.2,2593.0,4.36651226]
[1749122312349,6.302,2593.2,2593.1,16.0]
[1749122312582,6.302,2593.2,2593.1,19.8563881]
[1749122313086,1.6271,2593.5,2593.4,16.0]
[1749122313312,1.6271,2593.5,2593.4,19.855942]
[1749122313525,7.9281,2593.5,2593.4,19.855942]
[1749122313646,6.301,2593.5,2593.4,40.177379]
[1749122313852,6.301,2593.5,2593.4,23.117718]
[1749122314262,6.301,2593.5,2593.4,19.261776]
[1749122314796,6.301,2593.5,2593.4,23.117718]
[1749122315266,6.301,2593.5,2593.4,19.855942]
[1749122316088,1.5806,2593.7,2593.5,16.0]
[1749122316305,6.301,2593.6,2593.5,16.0]
[1749122316483,6.301,2593.6,2593.5,20.654297]
[1749122316682,1.5806,2593.7,2593.5,19.85574485]
[1749122316883,1.5806,2593.7,2593.6,3.85564466]
[1749122317101,1.5806,2593.7,2593.6,34.70166366]
[1749122317259,6.301,2593.7,2593.6,23.95901466]
[1749122317477,1.5687,2593.9,2593.7,16.0]
[1749122317665,6.301,2593.8,2593.7,10.0]
[1749122317891,1.5687,2593.9,2593.7,10.0]
[1749122318088,1.5687,2593.9,2593.8,19.85534736]
[1749122318401,7.61523022,2594.4,2594.0,3.85505011]
[1749122318402,1.5687,2594.4,2594.0,3.85505011]
[1749122318567,1.5687,2594.4,2594.1,16.0]
[1749122318901,1.5687,2594.4,2594.0,3.85491053]
[1749122318902,1.5687,2594.4,2594.3,16.0]
[1749122319063,6.301,2594.3,2594.2,28.702294]
[1749122319260,6.301,2594.3,2594.2,28.107794]
[1749122319488,6.301,2594.3,2594.0,16.0]
[1749122319705,6.301,2594.3,2594.0,19.85494072]
[1749122320501,5.4922809,2594.2,2593.5,4.79]
[1749122320686,1.6375,2593.9,2593.7,4.944607]
[1749122321001,6.3,2593.8,2593.7,16.0]
[1749122321170,6.3,2593.8,2593.6,16.0]
[1749122321363,6.3,2593.8,2593.4,16.0]
[1749122321565,6.3,2593.8,2593.5,16.0]
[1749122321868,6.3,2593.8,2593.5,19.85578516]
[1749122322080,6.3,2593.8,2593.6,16.0]
[1749122322281,6.3,2593.8,2593.7,16.0]
[1749122322662,6.3,2593.8,2593.5,19.85569]
[1749122322867,6.3,2593.8,2593.7,10.0]
[1749122323164,6.3,2593.8,2593.6,8.879091]
[1749122323365,6.3,2593.8,2593.6,6.015091]
[1749122323565,6.3,2593.8,2593.5,19.85569]
[1749122324430,6.3,2593.8,2593.6,3.85563434]
[1749122324626,6.3,2593.8,2593.7,10.0]
[1749122325426,6.3,2593.8,2593.5,19.85573879]
[1749122325816,10.15540547,2593.8,2593.3,16.0]
[1749122326115,10.15540547,2593.8,2593.4,3.85593907]
[1749122326693,6.3,2593.8,2593.5,16.0]
[1749122327031,1.6375,2593.9,2593.7,26.943046]
[1749122327233,6.299,2593.8,2593.7,23.570285]
[1749122327598,6.299,2593.8,2593.7,22.271831]
[1749122327998,1.6375,2593.9,2593.8,31.606281]
[1749122328229,7.9365,2593.9,2593.8,22.452272]
[1749122328435,7.9365,2593.9,2593.8,21.899377]
[1749122328608,7.9365,2593.9,2593.8,20.993677]
[1749122329228,7.9365,2593.9,2593.8,18.408971]
[1749122330337,7.9365,2593.9,2593.8,16.0]
[1749122330921,7.9365,2593.9,2593.8,24.503267]
[1749122331299,7.9365,2593.9,2593.8,22.690417]
[1749122331711,7.9365,2593.9,2593.8,22.356417]
[1749122331916,7.9365,2593.9,2593.8,18.143711]
[1749122332634,6.299,2593.9,2593.8,18.143711]
[1749122332801,6.298,2593.9,2593.7,16.0]
[1749122333002,6.298,2593.9,2593.8,35.950067]
[1749122336285,1.6445,2594.1,2593.9,16.0]
[1749122336437,6.298,2594.0,2593.9,30.449267]
[1749122336646,1.534,2594.5,2594.3,16.0]
[1749122336942,1.534,2594.5,2594.3,30.0]
[1749122337129,1.534,2594.5,2594.4,28.214091]
[1749122337463,1.5462,2594.8,2594.5,16.0]
[1749122337761,6.297,2594.7,2594.6,16.0]
[1749122337926,1.5462,2594.8,2594.6,16.0]
[1749122338327,6.297,2594.7,2594.6,16.0]
[1749122339664,6.297,2594.7,2594.5,3.85429545]
[1749122340029,6.297,2594.6,2594.5,14.18148844]
[1749122340766,6.297,2594.6,2594.5,7.15678244]
[1749122341125,6.297,2594.6,2594.5,10.0]
[1749122341940,6.297,2594.6,2594.5,13.85430718]
[1749122342266,6.297,2594.6,2594.5,3.85430718]
[1749122342468,6.297,2594.6,2594.1,4.23462274]
[1749122342469,1.5462,2594.8,2594.7,3.85401009]
[1749122342687,0.02,2594.9,2594.8,31.82513556]
[1749122343391,6.316,2594.9,2594.8,31.82513556]
[1749122343791,6.316,2594.9,2594.8,29.20520056]
[1749122344287,6.316,2594.9,2594.8,5.86831456]
[1749122344491,10.16978506,2594.9,2594.4,19.85437062]
[1749122344794,6.316,2594.9,2594.6,12.07055445]
[1749122345000,6.316,2594.9,2594.6,3.85415245]
[1749122346056,6.316,2594.9,2594.7,10.0]
[1749122346256,6.316,2594.9,2594.6,3.85415245]
[1749122346499,5.36805369,2594.8,2594.2,18.05808]
[1749122346663,1.5141,2594.8,2594.6,3.85409832]
[1749122346990,1.5141,2594.8,2594.5,13.85422286]
[1749122347196,1.5141,2594.8,2594.7,10.0]
[1749122347497,1.5141,2594.8,2594.6,7.089328]
[1749122347498,1.5141,2594.8,2594.5,10.0]
[1749122347791,6.316,2594.9,2594.7,40.11275909]
[1749122347792,0.02,2594.9,2594.7,40.11275909]
[1749122347957,0.02,2594.9,2594.7,31.03472809]
[1749122347958,6.295,2594.8,2594.7,31.03472809]
[1749122348158,0.02,2594.9,2594.8,29.74601456]
[1749122348696,6.314,2594.9,2594.8,29.74601456]
[1749122351324,6.314,2594.9,2594.8,24.33941456]
[1749122353760,0.02,2594.9,2594.8,24.33941456]
[1749122353993,6.313,2594.9,2594.8,24.33941456]
[1749122354402,0.02,2594.9,2594.8,24.33941456]
[1749122354567,6.313,2594.9,2594.8,24.33941456]
[1749122355476,0.02,2594.9,2594.8,24.33941456]
[1749122355675,6.313,2594.9,2594.8,24.33941456]
[1749122356703,6.313,2594.9,2594.8,19.85386156]
[1749122357274,6.313,2594.9,2594.8,25.07226456]
[1749122358279,0.02,2594.9,2594.8,25.07226456]
[1749122358485,6.312,2594.9,2594.8,28.46632653]
[1749122360274,0.02,2594.9,2594.8,25.07226456]
[1749122360610,0.02,2594.9,2594.8,28.46632653]
[1749122360788,6.312,2594.9,2594.8,28.46632653]
[1749122361445,6.312,2594.9,2594.8,25.07226456]
[1749122364117,0.02,2594.9,2594.8,25.07226456]
[1749122364315,6.311,2594.9,2594.8,25.07226456]
[1749122366213,6.311,2594.9,2594.8,28.46632653]
[1749122366519,0.02,2594.9,2594.8,28.46632653]
[1749122366686,6.311,2594.9,2594.8,28.46632653]
[1749122367427,0.02,2594.9,2594.8,28.46632653]
[1749122377546,0.02,2594.9,2594.8,25.07226456]
[1749122377732,0.02,2594.9,2594.8,30.10032653]
[1749122380128,0.02,2594.9,2594.8,26.70626456]
[1749122381536,0.02,2594.9,2594.8,30.10032653]
[1749122397810,0.02,2594.9,2594.8,25.07226456]
[1749122398030,0.02,2594.9,2594.8,30.09832653]
[1749122399915,0.02,2594.9,2594.8,28.46632653]
[1749122400110,0.02,2594.9,2594.8,30.09832653]
[1749122400907,0.02,2594.9,2594.8,34.88832653]
[1749122409629,0.02,2594.9,2594.8,35.43832653]
[1749122412208,1.4125,2595.6,2595.5,48.32674819]
[1749122414015,0.02,2595.9,2595.8,33.42496791]
[1749122414340,0.02,2595.9,2595.8,49.42496791]
[1749122414497,7.0843,2595.9,2595.8,49.42496791]
[1749122414920,0.7993,2595.9,2595.8,49.42496791]
[1749122415124,7.0843,2595.9,2595.8,40.78333191]
[1749122415521,0.7993,2595.9,2595.8,40.78333191]
[1749122415726,7.0833,2595.9,2595.8,40.78333191]
[1749122416541,7.0833,2595.9,2595.8,41.16710218]
[1749122419660,7.0833,2595.9,2595.8,40.50407618]
[1749122419965,7.0833,2595.9,2595.8,39.99954418]
[1749122420137,7.0833,2595.9,2595.8,37.97695418]
[1749122421153,7.0823,2595.9,2595.8,37.97695418]
[1749122422143,7.0823,2595.9,2595.8,32.35959618]
[1749122422623,7.0823,2595.9,2595.8,25.35959618]
[1749122422925,7.0823,2595.9,2595.8,29.21197309]
[1749122425160,7.0823,2595.9,2595.8,26.56206509]
[1749122425336,7.0823,2595.9,2595.8,19.60350009]
[1749122425551,7.0823,2595.9,2595.8,15.36735291]
[1749122425765,6.303,2595.9,2595.7,3.816226]
[1749122425968,0.7533,2595.8,2595.0,3.85345227]
[1749122426157,0.7692,2595.7,2595.4,3.85282832]
[1749122426367,0.7692,2595.7,2595.1,1.63]
[1749122426368,3.85267375,2595.6,2595.5,10.0]
[1749122426551,0.7692,2595.6,2594.8,1.63]
[1749122426759,0.7673,2595.4,2595.3,3.85311909]
[1749122427003,0.7673,2595.4,2595.3,27.38467109]
[1749122427659,0.7673,2595.4,2595.3,22.65067109]
[1749122429083,0.7673,2595.4,2595.3,19.85311909]
[1749122429375,0.7673,2595.4,2595.3,23.22111909]
[1749122429581,0.7673,2595.4,2595.3,19.85311909]
[1749122430278,0.7673,2595.4,2595.3,31.60067109]
[1749122430786,7.0493,2595.4,2595.3,31.60067109]
[1749122431490,0.7673,2595.4,2595.3,31.60067109]
[1749122431987,7.0503,2595.4,2595.3,31.60067109]
[1749122432157,7.0503,2595.4,2595.3,30.58348009]
[1749122433263,7.0503,2595.4,2595.3,26.42148009]
[1749122433596,7.0503,2595.4,2595.3,23.55748009]
[1749122435093,7.0503,2595.4,2595.3,22.89992809]
[1749122435271,7.0503,2595.4,2595.3,24.44292809]
[1749122436404,0.7673,2595.4,2595.3,24.44292809]
[1749122436757,0.7521,2595.7,2595.6,23.07794199]
[1749122436864,7.0341,2595.7,2595.6,23.07794199]
[1749122437395,7.0341,2595.7,2595.6,21.54783099]
[1749122438508,7.0341,2595.7,2595.6,11.39501799]
[1749122438805,7.0341,2595.7,2595.5,13.85275574]
[1749122439116,0.7521,2595.7,2595.5,19.85280082]
[1749122439422,0.7521,2595.7,2595.6,8.71467375]
[1749122440167,7.0341,2595.7,2595.6,8.71467375]
[1749122440976,7.0341,2595.7,2595.6,4.862]
[1749122441911,7.0341,2595.7,2595.6,8.71467375]
[1749122443417,0.7521,2595.7,2595.6,8.71467375]
[1749122443578,7.0341,2595.7,2595.6,24.71467375]
[1749122449624,0.7521,2595.7,2595.6,24.71467375]
[1749122449830,7.0331,2595.7,2595.6,24.71467375]
[1749122452823,7.0331,2595.7,2595.6,19.85267375]
[1749122453536,7.0331,2595.7,2595.6,23.12148275]
[1749122453893,7.0331,2595.7,2595.6,19.85267375]
[1749122454088,7.0331,2595.7,2595.6,29.45566075]
[1749122455331,7.0331,2595.7,2595.6,28.16366075]
[1749122455495,7.0331,2595.7,2595.6,27.74351075]
[1749122456219,7.0331,2595.7,2595.6,26.78511275]
[1749122456419,7.0331,2595.7,2595.6,25.42526275]
[1749122457096,7.0331,2595.7,2595.6,24.85247275]
[1749122457291,3.0,2595.8,2595.7,36.10686433]
[1749122457631,3.0,2595.8,2595.7,28.47066133]
[1749122457993,7.0505,2595.9,2595.8,22.58704691]
[1749122458192,7.0505,2595.9,2595.8,22.49437691]
[1749122458427,7.0505,2595.9,2595.8,19.85237691]
[1749122458796,7.0505,2595.9,2595.7,3.85252533]
[1749122459128,7.0505,2595.9,2595.8,3.85237691]
[1749122459321,7.0505,2595.9,2595.8,6.69064291]
[1749122459491,7.0505,2595.9,2595.8,3.85237691]
[1749122459892,7.0505,2595.9,2595.8,11.60014291]
[1749122460626,7.0505,2595.9,2595.8,3.85237691]
[1749122462831,7.0505,2595.9,2595.7,3.85244422]
[1749122463030,6.3,2595.9,2595.5,19.8527564]
[1749122463361,0.7991,2595.8,2595.7,19.85252533]
[1749122463528,7.0781,2595.8,2595.7,24.36079133]
[1749122463733,0.7991,2595.8,2595.7,24.36079133]
[1749122464030,0.02,2595.9,2595.8,29.56776691]
[1749122464413,6.299,2595.9,2595.8,29.56776691]
[1749122464608,0.02,2595.9,2595.8,29.56776691]
[1749122464865,0.02,2595.9,2595.8,45.56776691]
[1749122465010,0.02,2595.9,2595.8,48.96182888]
[1749122465211,6.299,2595.9,2595.8,48.96182888]
[1749122466342,6.299,2595.9,2595.8,45.56776691]
[1749122466547,6.299,2595.9,2595.8,31.93525891]
[1749122467931,6.299,2595.9,2595.8,22.63186191]
[1749122469516,0.02,2595.9,2595.8,22.63186191]
[1749122469715,6.298,2595.9,2595.8,22.63186191]
[1749122476748,6.297,2595.9,2595.8,22.63186191]
[1749122480867,6.297,2595.9,2595.8,27.42186191]
[1749122482747,0.02,2595.9,2595.8,30.81592388]
[1749122489842,0.02,2595.9,2595.8,31.0053228]
[1749122491056,0.02,2595.9,2595.8,30.81592388]
[1749122491436,0.02,2595.9,2595.8,26.02592388]
[1749122494180,0.02,2595.9,2595.8,27.65192388]
[1749122501852,0.02,2595.9,2595.8,26.02592388]
[1749122502059,0.02,2595.9,2595.8,27.65192388]
[1749122502795,0.02,2595.9,2595.8,26.02592388]
[1749122504497,0.02,2595.9,2595.8,27.65192388]
[1749122504998,0.02,2595.9,2595.8,26.02592388]
[1749122505375,0.02,2595.9,2595.8,27.64992388]
[1749122507373,0.02,2595.9,2595.8,30.81592388]
[1749122507614,0.02,2595.9,2595.8,32.43992388]
[1749122508433,0.02,2595.9,2595.8,30.81592388]
[1749122508623,0.02,2595.9,2595.8,32.43992388]
[1749122510132,0.02,2595.9,2595.8,30.81592388]
[1749122510332,0.02,2595.9,2595.8,32.43992388]
[1749122510911,0.02,2595.9,2595.8,30.81592388]
[1749122511113,0.02,2595.9,2595.8,32.43992388]
[1749122511312,0.02,2595.9,2595.8,30.81592388]
[1749122511512,0.02,2595.9,2595.8,32.43992388]
[1749122514741,0.7501,2596.6,2595.8,31.04398585]
[1749122514925,0.02,2596.9,2596.8,47.0872154]
[1749122515108,0.02,2596.9,2596.8,50.48127737]
[1749122515302,6.292,2596.9,2596.8,50.48127737]
[1749122515502,7.0755,2596.9,2596.8,50.48127737]
[1749122515958,7.0745,2596.9,2596.8,50.48127737]
[1749122516514,7.0745,2596.9,2596.8,47.64120537]
[1749122518212,7.0745,2596.9,2596.8,48.02810852]
[1749122518908,7.0745,2596.9,2596.8,43.88135152]
[1749122519112,7.0745,2596.9,2596.8,36.70638955]
[1749122519451,0.02,2596.9,2596.8,36.70638955]
[1749122519751,0.02,2596.9,2596.8,40.10045152]
[1749122524679,0.7928,2597.8,2596.9,16.0]
[1749122524831,0.7928,2597.8,2597.7,49.84955922]
[1749122525156,7.0618,2597.8,2597.7,44.93756122]
[1749122525449,7.0618,2597.8,2597.7,39.469914]
[1749122525614,7.0618,2597.8,2597.7,40.20097322]
[1749122526621,7.0618,2597.8,2597.7,35.87447322]
[1749122527531,0.7928,2597.8,2597.7,22.655598]
[1749122527731,7.0618,2597.8,2597.7,26.50515722]
[1749122528361,7.0618,2597.8,2597.7,18.449084]
[1749122528656,7.0608,2597.8,2597.7,22.29864322]
[1749122529021,7.0608,2597.8,2597.7,18.449084]
[1749122529533,7.0608,2597.8,2597.7,22.29864322]
[1749122531321,7.0608,2597.8,2597.7,16.0]
[1749122532075,7.0608,2597.8,2597.3,0.51]
[1749122532076,3.84992801,2597.5,2597.3,0.51]
[1749122532364,6.268,2597.8,2597.3,9.216612]
[1749122532365,7.0481,2597.4,2597.3,9.216612]
[1749122532733,7.0481,2597.4,2597.3,25.216612]
[1749122533266,7.0481,2597.4,2597.3,29.06676408]
[1749122533560,7.0481,2597.4,2597.3,24.086733]
[1749122533766,7.0481,2597.4,2597.3,20.975361]
[1749122533955,7.0481,2597.4,2597.3,16.0]
[1749122534141,6.268,2597.4,2597.0,3.85052817]
[1749122534464,0.8213,2597.3,2597.2,16.0]
[1749122534780,0.8213,2597.3,2597.2,25.63628032]
[1749122535070,0.8213,2597.3,2597.2,7.81205532]
[1749122535226,0.8213,2597.3,2597.2,6.57676132]
[1749122535780,0.8213,2597.3,2597.2,2.726461]
[1749122536125,0.8213,2597.3,2597.2,6.57676132]
[1749122537235,0.8213,2597.3,2597.2,2.726461]
[1749122537624,0.8213,2597.3,2597.2,6.57676132]
[1749122541651,0.7515,2597.6,2597.5,19.84985563]
[1749122541852,7.0185,2597.6,2597.5,33.29036463]
[1749122542067,7.0185,2597.6,2597.5,12.03263963]
[1749122542537,0.7515,2597.6,2597.5,12.03263963]
[1749122542743,0.7764,2597.9,2597.6,12.731532]
[1749122542942,6.267,2597.8,2597.7,3.84947311]
[1749122543176,6.267,2597.8,2597.7,13.84947311]
[1749122543387,6.267,2597.8,2597.7,3.84947311]
[1749122544197,6.267,2597.8,2597.4,10.0]
[1749122544198,0.7764,2597.9,2597.8,3.84941104]
[1749122544496,0.7764,2597.9,2597.4,10.0]
[1749122544497,0.02,2597.9,2597.7,28.49386903]
[1749122544654,0.02,2597.9,2597.8,20.46006804]
[1749122544854,6.287,2597.9,2597.8,20.46006804]
[1749122545791,0.02,2597.9,2597.8,36.46006804]
[1749122545992,6.287,2597.9,2597.8,36.46006804]
[1749122546772,0.02,2597.9,2597.8,36.46006804]
[1749122547285,0.02,2597.9,2597.8,41.25006804]
[1749122547864,0.8169,2598.8,2598.7,3.84806695]
[1749122548063,0.8169,2598.8,2598.3,10.0]
[1749122548064,0.02,2598.9,2598.8,31.82167078]
[1749122548862,0.02,2598.9,2598.8,28.42760881]
[1749122549263,0.02,2598.9,2598.8,4.17736]
[1749122549465,0.02,2598.9,2598.8,8.02528981]
[1749122550403,6.286,2598.9,2598.8,8.02528981]
[1749122551100,6.286,2598.9,2598.7,4.23594099]
[1749122551300,0.02,2598.9,2598.8,49.84792981]
[1749122551505,6.286,2598.9,2598.8,40.80216681]
[1749122552506,6.286,2598.9,2598.8,31.51001581]
[1749122554792,6.284,2598.9,2598.8,31.51001581]
[1749122555278,0.02,2598.9,2598.8,31.51001581]
[1749122555614,6.284,2598.9,2598.8,31.51001581]
[1749122556217,0.02,2598.9,2598.8,34.90407778]
[1749122556407,6.284,2598.9,2598.8,34.90407778]
[1749122558007,6.284,2598.9,2598.8,24.11635481]
[1749122559391,6.284,2598.9,2598.8,27.51041678]
[1749122560181,0.02,2598.9,2598.8,27.51041678]
[1749122560387,6.283,2598.9,2598.8,27.51041678]
[1749122560621,0.02,2598.9,2598.8,27.51041678]
[1749122560821,6.283,2598.9,2598.8,27.51041678]
[1749122561028,6.283,2598.9,2598.8,24.11635481]
[1749122562923,6.283,2598.9,2598.8,23.77934281]
[1749122563230,7.0552,2598.9,2598.8,4.881878]
[1749122563384,7.0552,2598.9,2598.8,5.560799]
[1749122563723,7.0552,2598.9,2598.8,25.40872881]
[1749122563724,0.7922,2598.9,2598.8,25.40872881]
[1749122563908,7.0542,2598.9,2598.8,25.40872881]
[1749122564112,6.282,2598.9,2598.8,25.40872881]
[1749122568857,0.02,2598.9,2598.8,28.80279078]
[1749122569229,0.02,2598.9,2598.8,25.40872881]
[1749122569426,0.02,2598.9,2598.8,30.42279078]
[1749122570850,0.02,2598.9,2598.8,28.80279078]
[1749122571037,0.02,2598.9,2598.8,30.42279078]
[1749122571450,0.02,2598.9,2598.8,33.81685275]
[1749122571824,0.02,2598.9,2598.8,30.42279078]
[1749122572015,0.02,2598.9,2598.8,34.36685275]
[1749122572218,2.21963013,2599.1,2599.0,49.8476337]
[1749122572451,2.21963013,2599.1,2599.0,56.63575764]
[1749122574358,2.21963013,2599.1,2599.0,58.25575764]
[1749122574723,2.21963013,2599.1,2599.0,58.80575764]
[1749122574925,6.261,2599.8,2599.7,33.84659768]
[1749122575158,6.261,2599.8,2599.7,49.84659768]
[1749122575474,6.261,2599.8,2599.7,49.58287668]
[1749122576048,0.02,2599.9,2599.8,19.84644972]
[1749122576248,6.281,2599.9,2599.8,35.04460972]
[1749122576851,6.281,2599.9,2599.8,34.22446272]
[1749122578250,6.281,2599.9,2599.8,28.23897672]
[1749122578451,6.281,2599.9,2599.8,26.84732972]
[1749122578452,7.1052,2599.9,2599.8,26.84732972]
[1749122578657,7.1052,2599.9,2599.8,25.85316172]
[1749122579175,6.28,2599.9,2599.8,29.24722369]
[1749122579937,6.28,2599.9,2599.8,25.85316172]
[1749122580877,6.28,2599.9,2599.8,29.24722369]
[1749122581380,0.02,2599.9,2599.8,29.24722369]
[1749122584258,0.02,2599.9,2599.8,34.03722369]
[1749122585483,0.02,2599.9,2599.8,30.64316172]
[1749122588751,0.02,2599.9,2599.8,24.63644972]
[1749122588964,0.02,2599.9,2599.8,42.03078772]
[1749122589369,0.02,2599.9,2599.8,24.63644972]
[1749122589560,0.7818,2599.9,2599.8,24.63644972]
[1749122589954,0.7818,2599.9,2599.8,30.39020972]
[1749122590148,0.7818,2599.9,2599.6,4.35666136]
[1749122590458,6.259,2599.8,2599.7,21.96673268]
[1749122590873,0.7818,2599.9,2599.8,19.84644972]
[1749122591074,7.0408,2599.9,2599.8,43.27487472]
[1749122591397,6.279,2599.9,2599.8,46.66893669]
[1749122591760,6.279,2599.9,2599.8,25.67967572]
[1749122593557,6.279,2599.9,2599.8,24.77254572]
[1749122593757,7.0649,2599.9,2599.8,24.77254572]
[1749122594073,6.279,2599.9,2599.8,16.0]
[1749122594278,7.0649,2599.9,2599.8,19.84644972]
[1749122594521,7.0649,2599.9,2599.6,0.51]
[1749122594653,4.6402794,2599.8,2599.4,10.0]
[1749122594855,4.6402794,2599.8,2599.2,3.84725649]
[1749122594856,4.64050937,2599.6,2599.2,14.746481]
[1749122595168,0.7937,2599.4,2599.3,9.182706]
[1749122595379,0.7937,2599.4,2599.3,8.121754]
[1749122595569,0.7937,2599.4,2599.3,24.121754]
[1749122595755,0.7937,2599.4,2599.0,3.84757103]
[1749122595949,0.7937,2599.4,2599.1,3.84739531]
[1749122596253,0.7937,2599.4,2599.2,16.0]
[1749122596895,0.7937,2599.4,2599.0,19.84754234]
[1749122597049,0.7937,2599.4,2599.2,16.0]
[1749122597488,4.64080688,2599.4,2598.9,3.84774403]
[1749122597656,0.7937,2599.4,2599.0,19.8475542]
[1749122597855,0.7937,2599.4,2599.2,10.0]
[1749122598090,0.7937,2599.4,2599.3,10.0]
[1749122598317,0.7937,2599.4,2599.2,10.0]
[1749122598603,4.64077029,2599.4,2599.1,10.0]
[1749122598810,0.7937,2599.4,2599.2,10.0]
[1749122599106,0.7937,2599.4,2599.1,19.84748486]
[1749122599404,0.7937,2599.4,2599.3,16.0]
[1749122599571,0.7937,2599.4,2599.2,10.0]
[1749122599572,7.0527,2599.4,2599.2,10.0]
[1749122599773,7.0527,2599.4,2599.2,16.0]
[1749122600680,6.26,2599.3,2599.2,3.84733764]
[1749122601011,6.26,2599.3,2599.2,5.380065]
[1749122601307,0.7937,2599.4,2599.3,16.0]
[1749122601483,7.0537,2599.4,2599.3,16.0]
[1749122602566,0.7937,2599.4,2599.3,16.0]
[1749122602769,7.0537,2599.4,2599.3,16.0]
[1749122603670,7.0537,2599.4,2599.3,20.395845]
[1749122603870,7.0537,2599.4,2599.3,23.922642]
[1749122604108,0.7962,2599.8,2599.5,3.84679241]
[1749122604407,6.26,2599.7,2599.6,8.11435]
[1749122604569,6.26,2599.7,2599.6,4.623962]
[1749122604769,6.26,2599.7,2599.5,14.088756]
[1749122605008,6.26,2599.7,2599.4,16.0]
[1749122605206,0.7768,2599.6,2599.4,10.0]
[1749122605809,0.7768,2599.6,2599.4,16.0]
[1749122606012,0.7768,2599.6,2598.9,22.906059]
[1749122606013,3.84704162,2599.4,2598.9,22.906059]
[1749122606316,6.26,2599.5,2599.1,4.149651]
[1749122606317,0.7768,2599.2,2599.1,4.149651]
[1749122606610,7.0368,2599.2,2599.1,4.149651]
[1749122607021,7.0368,2599.2,2599.1,7.99713666]
[1749122607334,0.7993,2599.6,2599.2,26.0]
[1749122607618,3.86632437,2599.9,2599.2,26.0]
[1749122607619,0.7993,2599.8,2599.6,19.84670129]
[1749122607822,0.7993,2599.8,2599.7,24.40911]
[1749122608115,0.7993,2599.8,2599.7,23.93311]
[1749122608322,7.0593,2599.8,2599.7,27.77970768]
[1749122608480,7.0593,2599.8,2599.7,18.650532]
[1749122610616,7.0593,2599.8,2599.7,16.0]
[1749122610818,7.0593,2599.8,2599.7,24.051144]
[1749122611185,7.0593,2599.8,2599.7,21.729326]
[1749122611580,7.0593,2599.8,2599.7,25.57592368]
[1749122611786,0.7993,2599.8,2599.7,25.57592368]
[1749122611987,7.0593,2599.8,2599.7,25.57592368]
[1749122612744,0.7993,2599.8,2599.7,25.57592368]
[1749122613018,0.02,2599.9,2599.8,27.180289]
[1749122613221,0.02,2599.9,2599.8,29.11589272]
[1749122613431,6.28,2599.9,2599.8,29.11589272]
[1749122613605,0.02,2599.9,2599.8,29.11589272]
[1749122615118,0.02,2599.9,2599.8,33.90589272]
[1749122616298,0.02,2599.9,2599.8,17.90589272]
[1749122616503,0.02,2600.9,2600.8,3.84497077]
[1749122616696,0.02,2600.9,2600.8,28.50735974]
[1749122616935,0.7807,2601.8,2600.8,28.50735974]
[1749122616936,0.7807,2601.8,2601.7,3.84364069]
[1749122617242,7.0637,2601.8,2601.7,3.84364069]
[1749122617740,0.7807,2601.8,2601.7,3.84364069]
[1749122618201,0.02,2601.9,2601.8,13.84349296]
[1749122618405,0.02,2601.9,2601.8,14.94253096]
[1749122618406,6.302,2601.9,2601.8,14.94253096]
[1749122618718,0.02,2601.9,2601.8,12.81797596]
[1749122618896,6.302,2601.9,2601.8,12.81797596]
[1749122619228,6.302,2601.9,2601.8,10.85939296]
[1749122619229,6.301,2601.9,2601.8,10.85939296]
[1749122619643,0.02,2601.9,2601.8,17.88106934]
[1749122619934,0.02,2601.9,2601.8,26.35521296]
[1749122620131,6.31,2601.9,2601.8,26.35521296]
[1749122620342,6.31,2601.9,2601.8,11.672733]
[1749122620498,6.31,2601.9,2601.8,15.51622596]
[1749122620929,6.31,2601.9,2601.8,7.97249296]
[1749122621294,6.311,2601.9,2601.8,7.97249296]
[1749122621845,6.311,2601.9,2601.8,22.96984896]
[1749122623296,7.0718,2601.9,2601.5,21.495949]
[1749122623498,7.0718,2601.9,2601.8,16.0]
[1749122623734,7.0808,2601.9,2601.8,22.50149296]
[1749122624096,0.7808,2601.9,2601.8,22.50149296]
[1749122624330,7.0808,2601.9,2601.8,22.50149296]
[1749122624571,7.0808,2601.9,2601.8,18.658]
[1749122624731,0.7808,2601.9,2601.8,18.658]
[1749122624937,0.7808,2601.9,2601.8,22.50149296]
[1749122624938,6.319,2601.9,2601.8,22.50149296]
[1749122625308,0.02,2601.9,2601.8,22.50149296]